bitfinex/quotes_SOLUSD_20250922
["timestamp","ask_amount","ask_price","bid_price","bid_amount"]
[1758551193152,4.47805889,223.32,223.28,14.31559401]
[1758551193650,16.37275708,223.32,223.28,13.59559401]
[1758551193942,15.67275708,223.32,223.28,13.59559401]
[1758551194144,16.37275708,223.32,223.28,13.59559401]
[1758551194325,4.47805889,223.32,223.29,0.72]
[1758551194737,4.47805889,223.32,223.28,13.59559401]
[1758551195244,0.7,223.31,223.27,13.59559401]
[1758551195546,15.67398119,223.3,223.27,36.04]
[1758551195849,16.37398119,223.3,223.27,36.04]
[1758551196019,30.47828034,223.3,223.27,36.04]
[1758551196220,4.47828034,223.3,223.27,36.04]
[1758551196420,4.47809353,223.31,223.28,13.59559401]
[1758551196721,4.47809353,223.31,223.28,14.31559401]
[1758551196941,4.47809353,223.31,223.28,13.59559401]
[1758551197532,4.47809353,223.31,223.27,36.04]
[1758551197533,0.7,223.3,223.27,13.59559401]
[1758551197839,15.67329302,223.31,223.27,13.59559401]
[1758551197840,22.36977364,223.31,223.28,36.02]
[1758551198027,0.7,223.3,223.23,0.72]
[1758551198232,0.7,223.3,223.24,49.63559401]
[1758551198745,0.7,223.3,223.26,13.59559401]
[1758551198948,21.66977364,223.31,223.26,13.59559401]
[1758551198949,0.7,223.29,223.26,13.59559401]
[1758551199248,10.47457415,223.31,223.26,13.59559401]
[1758551199444,0.7,223.3,223.23,0.72]
[1758551199750,36.47496151,223.29,223.25,13.59559401]
[1758551199934,31.17848089,223.29,223.26,36.0]
[1758551200326,42.37468313,223.29,223.25,13.59559401]
[1758551200526,42.37468313,223.29,223.26,36.0]
[1758551201136,42.37468313,223.29,223.26,35.98]
[1758551201331,4.47888207,223.27,223.25,13.59559401]
[1758551201535,4.47888207,223.27,223.26,35.98]
[1758551201536,16.37608724,223.27,223.26,35.98]
[1758551202748,36.47512247,223.29,223.26,35.98]
[1758551203048,41.67484409,223.29,223.26,35.98]
[1758551203250,42.37484409,223.29,223.24,0.72]
[1758551203547,42.37484409,223.29,223.25,35.98]
[1758551205152,30.47864185,223.29,223.25,35.98]
[1758551205333,4.47864185,223.29,223.26,0.72]
[1758551206041,4.47824503,223.31,223.27,0.72]
[1758551206249,4.47824503,223.31,223.28,0.72]
[1758551206557,0.7,223.3,223.23,13.59559401]
[1758551206756,0.7,223.3,223.24,35.94]
[1758551206959,4.47824503,223.31,223.24,36.66]
[1758551207129,4.47824503,223.31,223.25,0.72]
[1758551207453,0.7,223.35,223.25,0.72]
[1758551207454,4.47747828,223.34,223.26,13.59559401]
[1758551207639,4.47747828,223.34,223.28,13.59559401]
[1758551207945,15.67117399,223.34,223.28,13.59559401]
[1758551208251,15.67117399,223.34,223.29,35.92]
[1758551208564,15.67117399,223.34,223.3,0.72]
[1758551208732,4.47747828,223.34,223.31,13.59559401]
[1758551209138,4.47747828,223.34,223.3,13.59559401]
[1758551209333,4.47747828,223.34,223.3,14.31559401]
[1758551209730,4.47747828,223.34,223.31,0.72]
[1758551209938,4.47747828,223.34,223.32,0.72]
[1758551210141,4.47747828,223.34,223.33,35.9]
[1758551210451,30.47679119,223.38,223.34,13.59559401]
[1758551210648,4.47679119,223.38,223.34,14.31559401]
[1758551210960,4.47679119,223.38,223.35,35.9]
[1758551210961,0.7,223.37,223.35,35.9]
[1758551211157,5.17687693,223.37,223.36,35.88]
[1758551211754,42.36906925,223.37,223.28,0.72]
[1758551211952,42.36906925,223.37,223.29,13.59559401]
[1758551212147,44.82073126,223.37,223.31,13.59559401]
[1758551213546,42.36906925,223.37,223.31,13.59559401]
[1758551214149,41.66906925,223.37,223.31,14.31559401]
[1758551216340,4.47687693,223.37,223.31,13.59559401]
[1758551216544,4.47687693,223.37,223.33,13.59559401]
[1758551216760,4.47687693,223.37,223.35,13.59559401]
[1758551217668,11.19109741,223.4,223.35,13.59559401]
[1758551217669,15.66737314,223.4,223.35,13.59559401]
[1758551217851,0.69,223.39,223.35,13.59559401]
[1758551218053,15.66737314,223.4,223.35,14.24559401]
[1758551218358,0.69,223.39,223.35,13.59559401]
[1758551218557,15.66737314,223.4,223.35,13.59559401]
[1758551218859,16.35737314,223.4,223.35,14.24559401]
[1758551219052,0.69,223.39,223.35,13.59559401]
[1758551219268,0.69,223.38,223.36,35.78]
[1758551219575,4.47687693,223.37,223.36,35.76]
[1758551219746,15.66906925,223.37,223.36,35.76]
[1758551219947,16.35906925,223.37,223.3,0.65]
[1758551220148,16.35906925,223.37,223.28,15.65450938]
[1758551220149,26.0,223.34,223.31,35.76]
[1758551220366,26.69,223.34,223.31,35.76]
[1758551220949,26.0,223.34,223.31,0.65]
[1758551221150,26.0,223.34,223.32,35.76]
[1758551221572,5.16767877,223.33,223.32,35.76]
[1758551221755,4.47767877,223.33,223.32,35.76]
[1758551222154,30.47750096,223.34,223.32,35.76]
[1758551222379,30.47750096,223.34,223.33,35.74]
[1758551223279,31.16750096,223.34,223.33,35.74]
[1758551223594,31.16750096,223.34,223.28,14.24559401]
[1758551223868,26.0,223.31,223.25,0.65]
[1758551224070,26.0,223.31,223.17,22.40388637]
[1758551224071,26.0,223.31,223.27,13.59559401]
[1758551224376,0.69,223.33,223.27,13.59559401]
[1758551224564,2.45166201,223.44,223.27,13.59559401]
[1758551224565,0.69,223.36,223.27,13.59559401]
[1758551224773,26.0,223.34,223.28,0.65]
[1758551225354,26.0,223.37,223.28,0.65]
[1758551225557,4.47587503,223.42,223.33,18.07327278]
[1758551225763,5.16587503,223.42,223.35,13.59559401]
[1758551226170,5.16587503,223.42,223.35,14.24559401]
[1758551226371,0.69,223.42,223.35,13.59559401]
[1758551226665,4.47527411,223.45,223.37,13.59559401]
[1758551226985,0.69,223.46,223.39,13.59559401]
[1758551227281,26.0,223.45,223.41,13.59559401]
[1758551227480,0.69,223.45,223.41,13.59559401]
[1758551227677,4.47487358,223.47,223.41,14.24559401]
[1758551227877,26.0,223.44,223.41,13.59559401]
[1758551228182,0.69,223.43,223.35,0.65]
[1758551228380,0.69,223.43,223.36,13.59559401]
[1758551228585,0.69,223.43,223.38,13.59559401]
[1758551228765,0.69,223.42,223.39,35.78]
[1758551229086,26.0,223.44,223.39,35.78]
[1758551229386,0.69,223.43,223.39,35.78]
[1758551229692,26.0,223.44,223.4,14.24559401]
[1758551229984,15.96227075,223.47,223.41,0.65]
[1758551229985,0.69,223.47,223.41,0.65]
[1758551230362,0.69,223.47,223.42,13.59559401]
[1758551230562,0.69,223.5,223.44,13.59559401]
[1758551230783,0.69,223.5,223.45,35.76]
[1758551231169,41.27075734,223.51,223.45,35.76]
[1758551231170,0.69,223.49,223.45,35.76]
[1758551231569,26.0,223.46,223.45,35.76]
[1758551231977,15.27075734,223.51,223.45,35.76]
[1758551232182,0.69,223.52,223.46,13.59559401]
[1758551232489,4.08508679,223.54,223.46,14.24559401]
[1758551232878,26.0,223.52,223.46,14.24559401]
[1758551233071,26.0,223.52,223.46,13.59559401]
[1758551233267,26.0,223.52,223.47,0.65]
[1758551233468,26.0,223.51,223.46,13.59559401]
[1758551233670,26.0,223.51,223.47,0.65]
[1758551235690,26.0,223.53,223.48,0.69]
[1758551235893,26.0,223.54,223.49,36.37]
[1758551236294,0.2,223.56,223.5,14.28559401]
[1758551236679,26.0,223.55,223.5,14.28559401]
[1758551237175,26.0,223.54,223.5,14.28559401]
[1758551237571,0.68,223.53,223.51,35.66]
[1758551237766,0.68,223.53,223.52,35.66]
[1758551237971,26.0,223.55,223.52,36.35]
[1758551238386,0.2,223.56,223.53,14.28559401]
[1758551238972,0.2,223.56,223.53,13.59559401]
[1758551239174,0.2,223.56,223.54,0.69]
[1758551239392,0.2,223.56,223.53,13.59559401]
[1758551239581,0.2,223.56,223.54,0.69]
[1758551239890,0.2,223.56,223.53,13.59559401]
[1758551240087,0.2,223.56,223.53,14.28559401]
[1758551240797,4.67312164,223.56,223.54,35.64]
[1758551241777,0.2,223.56,223.54,35.64]
[1758551242282,4.67308667,223.56,223.54,35.64]
[1758551242476,0.2,223.56,223.54,35.64]
[1758551242670,0.2,223.56,223.54,36.33]
[1758551242873,4.67308091,223.56,223.54,35.64]
[1758551245096,4.67308091,223.56,223.53,13.59559401]
[1758551245393,0.68,223.55,223.51,13.57358588]
[1758551245596,0.68,223.55,223.5,13.59559401]
[1758551245778,4.76508679,223.54,223.51,35.56]
[1758551245974,4.08508679,223.52,223.46,13.59559401]
[1758551246195,4.08508679,223.52,223.48,13.59559401]
[1758551246495,0.68,223.51,223.49,35.56]
[1758551246686,0.68,223.5,223.49,35.56]
[1758551247197,5.15427293,223.5,223.49,35.56]
[1758551248008,4.47427293,223.5,223.49,35.56]
[1758551248689,4.47407274,223.51,223.49,35.56]
[1758551249785,5.17407274,223.51,223.49,35.56]
[1758551249990,0.7,223.5,223.45,13.59559401]
[1758551250175,17.22678067,223.51,223.46,35.56]
[1758551250176,2.26752606,223.49,223.46,35.56]
[1758551250381,1.56752606,223.49,223.47,35.56]
[1758551250692,4.47487358,223.47,223.42,13.59559401]
[1758551250895,1.56752606,223.48,223.44,13.59559401]
[1758551251112,6.74223888,223.48,223.44,13.59559401]
[1758551251298,4.47471282,223.48,223.44,14.30559401]
[1758551251513,11.18330006,223.55,223.45,0.71]
[1758551251681,26.0,223.52,223.47,13.59559401]
[1758551252011,17.92397874,223.55,223.48,0.71]
[1758551252185,26.0,223.52,223.44,0.71]
[1758551252389,1.56752606,223.51,223.45,35.56]
[1758551252591,1.56752606,223.51,223.46,13.59559401]
[1758551252811,26.0,223.52,223.47,0.71]
[1758551253099,26.0,223.52,223.48,0.71]
[1758551253291,4.47410623,223.51,223.49,35.56]
[1758551253491,5.17410623,223.51,223.46,13.59559401]
[1758551253693,15.6592881,223.51,223.47,36.27]
[1758551253898,15.6592881,223.51,223.47,35.56]
[1758551254095,4.47410623,223.51,223.48,0.71]
[1758551254306,4.47410623,223.51,223.49,35.56]
[1758551254817,0.9,223.56,223.51,13.59559401]
[1758551254984,0.2,223.56,223.53,13.59559401]
[1758551255304,0.2,223.56,223.54,0.71]
[1758551255305,4.67312304,223.56,223.54,0.71]
[1758551255609,4.67312304,223.56,223.55,35.56]
[1758551258506,0.2,223.56,223.55,35.56]
[1758551259389,4.6730721,223.56,223.55,35.56]
[1758551259591,4.6730721,223.56,223.53,13.59559401]
[1758551259786,0.2,223.56,223.54,35.56]
[1758551260004,4.67309567,223.56,223.54,35.56]
[1758551260394,4.67309567,223.56,223.54,36.27]
[1758551260787,4.67309567,223.56,223.54,35.56]
[1758551261195,0.2,223.56,223.54,36.27]
[1758551261404,4.67311346,223.56,223.54,35.56]
[1758551262094,0.2,223.56,223.55,0.71]
[1758551262293,0.2,223.56,223.55,14.30559401]
[1758551263221,0.2,223.56,223.55,18.7788662]
[1758551263895,0.2,223.56,223.55,14.30559401]
[1758551264309,0.2,223.56,223.55,18.7788662]
[1758551269230,0.2,223.56,223.55,49.84559401]
[1758551269515,0.2,223.56,223.55,55.88639226]
[1758551271215,0.2,223.57,223.56,13.59559401]
[1758551271406,0.2,223.57,223.56,14.30559401]
[1758551272220,0.2,223.6,223.59,39.59559401]
[1758551272418,0.2,223.6,223.59,76.70312007]
[1758551272627,0.2,223.6,223.59,77.41312007]
[1758551273106,0.2,223.6,223.59,81.885592]
[1758551277194,0.2,223.6,223.59,46.345592]
[1758551277519,0.2,223.6,223.59,81.885592]
[1758551279333,0.2,223.6,223.59,39.59559401]
[1758551279636,0.2,223.6,223.59,75.13559401]
[1758551280306,0.2,223.6,223.59,13.59559401]
[1758551280527,0.88,223.6,223.59,13.59559401]
[1758551280826,0.88,223.6,223.59,49.13559401]
[1758551281414,5.35227191,223.6,223.59,49.13559401]
[1758551281624,0.2,223.6,223.59,49.13559401]
[1758551281812,0.88,223.6,223.59,49.13559401]
[1758551282209,0.2,223.6,223.59,53.60806594]
[1758551282400,0.2,223.6,223.59,49.13559401]
[1758551282723,0.2,223.6,223.59,53.60806594]
[1758551282926,0.2,223.6,223.59,49.13559401]
[1758551283119,0.88,223.6,223.59,49.11559401]
[1758551283900,0.88,223.6,223.59,13.59559401]
[1758551284101,5.35227191,223.6,223.59,49.11559401]
[1758551284527,0.88,223.6,223.59,49.11559401]
[1758551284917,5.35227191,223.6,223.59,35.52]
[1758551285323,16.53295169,223.6,223.59,35.52]
[1758551287021,16.53295169,223.6,223.54,13.59559401]
[1758551287238,0.2,223.6,223.55,37.76752606]
[1758551287419,0.2,223.6,223.59,15.16312007]
[1758551287620,0.2,223.6,223.59,50.68312007]
[1758551288443,0.2,223.6,223.59,51.36312007]
[1758551288620,0.2,223.6,223.59,56.71365754]
[1758551289016,0.2,223.6,223.59,54.26806594]
[1758551289232,0.2,223.6,223.59,56.71365754]
[1758551290414,4.47047574,223.69,223.6,13.59559401]
[1758551290618,5.15028489,223.7,223.68,2.4455916]
[1758551290817,4.47028489,223.7,223.69,35.52]
[1758551291042,30.47028489,223.7,223.69,35.52]
[1758551291346,5.14942964,223.75,223.69,35.52]
[1758551291637,5.14942964,223.75,223.7,13.59559401]
[1758551291936,0.68,223.74,223.71,35.52]
[1758551292329,31.149074,223.76,223.71,35.52]
[1758551292541,0.68,223.75,223.72,13.59559401]
[1758551292717,0.68,223.75,223.73,35.52]
[1758551294237,4.46947349,223.74,223.73,35.52]
[1758551294919,5.11947349,223.74,223.73,35.52]
[1758551295716,4.46947349,223.74,223.73,35.52]
[1758551295920,30.46925769,223.76,223.73,35.52]
[1758551296313,0.2,223.77,223.74,13.59559401]
[1758551296515,0.2,223.77,223.75,35.52]
[1758551296719,0.2,223.77,223.76,13.59559401]
[1758551296919,0.2,223.77,223.76,14.29559401]
[1758551297329,0.2,223.77,223.76,13.59559401]
[1758551297532,0.2,223.77,223.76,49.11559401]
[1758551298044,0.2,223.77,223.76,49.81559401]
[1758551299645,0.2,223.77,223.76,14.29559401]
[1758551299825,0.2,223.77,223.76,49.11559401]
[1758551300142,0.2,223.77,223.76,49.81559401]
[1758551300345,0.2,223.77,223.76,14.29559401]
[1758551300542,0.1,223.79,223.76,49.81559401]
[1758551301250,0.1,223.79,223.77,14.29559401]
[1758551301549,0.1,223.79,223.78,49.09559401]
[1758551301840,0.1,223.79,223.78,52.24118561]
[1758551302541,0.1,223.79,223.78,56.7098602]
[1758551304541,0.1,223.79,223.78,18.7642686]
[1758551304727,0.1,223.79,223.78,56.7098602]
[1758551304948,0.1,223.79,223.78,21.2098602]
[1758551305345,0.1,223.79,223.78,56.7098602]
[1758551305828,0.65,223.88,223.78,56.7098602]
[1758551305829,4.46631061,223.9,223.82,13.59559401]
[1758551306034,4.46668518,223.88,223.82,49.09559401]
[1758551306242,4.46668518,223.88,223.82,52.24118561]
[1758551306636,0.65,223.9,223.82,56.70906158]
[1758551306834,5.11628659,223.9,223.82,21.20906158]
[1758551307042,0.65,223.88,223.82,56.00906158]
[1758551307229,0.7,223.87,223.82,56.00906158]
[1758551307426,0.7,223.87,223.82,53.56346998]
[1758551307629,0.7,223.87,223.82,54.22346998]
[1758551309349,0.7,223.87,223.82,49.07559401]
[1758551310252,4.46711227,223.86,223.82,49.07559401]
[1758551310437,0.9,223.83,223.82,35.48]
[1758551310647,0.9,223.83,223.79,13.59559401]
[1758551310841,0.7,223.82,223.81,13.59559401]
[1758551311033,0.7,223.82,223.78,13.59559401]
[1758551311349,0.7,223.81,223.8,13.59559401]
[1758551311849,4.66768275,223.83,223.8,13.59559401]
[1758551312042,4.66768275,223.83,223.82,13.59559401]
[1758551312649,5.36768275,223.83,223.82,13.59559401]
[1758551312870,5.36768275,223.83,223.74,0.66]
[1758551313158,2.4455916,223.82,223.76,13.59559401]
[1758551313328,3.1455916,223.82,223.78,13.59559401]
[1758551313527,0.7,223.81,223.8,13.59559401]
[1758551314066,4.46827524,223.8,223.73,39.59559401]
[1758551314266,0.7,223.79,223.75,13.59559401]
[1758551314433,0.7,223.79,223.77,13.59559401]
[1758551314633,15.63896335,223.8,223.79,13.59559401]
[1758551314853,15.63896335,223.8,223.79,49.07559401]
[1758551315264,16.33896335,223.8,223.79,49.07559401]
[1758551315951,0.2,223.83,223.79,49.07559401]
[1758551316153,4.66768627,223.83,223.79,49.07559401]
[1758551316346,5.36768627,223.83,223.79,49.07559401]
[1758551316746,0.2,223.83,223.79,53.54401774]
[1758551316952,0.2,223.83,223.79,54.20401774]
[1758551317343,0.2,223.83,223.81,13.59559401]
[1758551317536,0.2,223.83,223.82,49.07559401]
[1758551318258,0.2,223.83,223.82,49.73559401]
[1758551318563,0.2,223.83,223.82,54.20346998]
[1758551319853,0.2,223.83,223.82,49.73559401]
[1758551320449,0.2,223.83,223.82,49.07559401]
[1758551325250,0.2,223.83,223.82,49.73559401]
[1758551325466,0.2,223.83,223.82,49.07559401]
[1758551325769,0.2,223.83,223.82,53.54346998]
[1758551326472,0.2,223.83,223.82,54.20346998]
[1758551328164,0.2,223.83,223.82,54.18346998]
[1758551330155,0.2,223.83,223.82,53.52346998]
[1758551332150,0.2,223.83,223.82,13.59559401]
[1758551332351,0.9,223.83,223.82,49.05559401]
[1758551333150,0.9,223.83,223.82,13.59559401]
[1758551333348,0.9,223.83,223.82,49.05559401]
[1758551333577,5.36767636,223.83,223.82,49.05559401]
[1758551334075,7.81326796,223.83,223.79,13.40494736]
[1758551334263,0.7,223.82,223.8,49.05559401]
[1758551334468,7.11326796,223.83,223.81,35.46]
[1758551334669,0.2,223.83,223.82,49.05559401]
[1758551335186,0.9,223.83,223.82,49.05559401]
[1758551335366,0.2,223.83,223.82,49.05559401]
[1758551335675,0.9,223.83,223.82,49.05559401]
[1758551335877,5.36767636,223.83,223.82,49.05559401]
[1758551336253,5.36767636,223.83,223.82,13.59559401]
[1758551336458,5.36767636,223.83,223.75,4.46925627]
[1758551336660,0.7,223.82,223.76,49.05559401]
[1758551336873,0.7,223.82,223.75,4.46925627]
[1758551336874,2.4455916,223.82,223.74,0.66]
[1758551337071,0.7,223.81,223.75,49.05559401]
[1758551337282,0.66,223.8,223.75,49.05559401]
[1758551337460,0.66,223.79,223.75,49.05559401]
[1758551337778,0.66,223.79,223.75,49.76559401]
[1758551338162,3.1055916,223.82,223.76,5.1789165]
[1758551338363,0.66,223.82,223.78,13.59559401]
[1758551338578,0.66,223.81,223.8,13.59559401]
[1758551339077,3.1055916,223.81,223.8,13.59559401]
[1758551339671,3.1055916,223.81,223.74,13.59559401]
[1758551339870,2.4455916,223.79,223.76,13.59559401]
[1758551340061,2.4455916,223.79,223.78,13.59559401]
[1758551340259,4.4684749,223.79,223.78,13.59559401]
[1758551340567,5.1284749,223.79,223.78,13.59559401]
[1758551340982,4.46830161,223.8,223.78,13.59559401]
[1758551341201,4.46830161,223.8,223.79,49.05559401]
[1758551341360,0.66,223.8,223.79,49.05559401]
[1758551341685,30.46789983,223.82,223.79,49.05559401]
[1758551341987,4.46789983,223.82,223.8,13.59559401]
[1758551342196,0.66,223.81,223.77,13.59559401]
[1758551342360,0.66,223.81,223.78,35.46]
[1758551342565,0.2,223.83,223.78,36.17]
[1758551342780,0.86,223.83,223.78,36.17]
[1758551342982,0.66,223.82,223.78,35.46]
[1758551343283,0.66,223.81,223.76,13.59559401]
[1758551343464,0.66,223.8,223.78,13.59559401]
[1758551343790,15.83698854,223.83,223.79,35.46]
[1758551344370,4.46807559,223.81,223.79,35.46]
[1758551344574,0.66,223.8,223.79,49.05559401]
[1758551344788,0.66,223.8,223.66,24.6166709]
[1758551344955,0.66,223.8,223.7,13.59559401]
[1758551344956,0.66,223.79,223.7,13.59559401]
[1758551345157,3.1055916,223.78,223.72,13.59559401]
[1758551345469,0.66,223.77,223.72,13.59559401]
[1758551345659,0.66,223.76,223.72,13.59559401]
[1758551346383,37.97864257,223.81,223.71,35.46]
[1758551346384,5.12807559,223.81,223.75,13.59559401]
[1758551346598,5.12807559,223.81,223.76,35.46]
[1758551346762,0.66,223.8,223.76,35.46]
[1758551347075,0.66,223.79,223.76,35.46]
[1758551347280,0.66,223.78,223.76,35.46]
[1758551348156,15.63826458,223.81,223.76,35.46]
[1758551348361,16.29826458,223.81,223.77,13.59559401]
[1758551348575,0.66,223.8,223.77,13.59559401]
[1758551349581,30.46807559,223.81,223.77,13.59559401]
[1758551349767,5.32780035,223.83,223.79,13.59559401]
[1758551350068,4.66780035,223.83,223.8,35.46]
[1758551350274,4.66780035,223.83,223.81,13.59559401]
[1758551351266,0.2,223.83,223.81,14.30559401]
[1758551352394,0.2,223.83,223.82,0.71]
[1758551352967,0.2,223.83,223.82,15.86818298]
[1758551353166,0.2,223.83,223.82,20.33605895]
[1758551354088,0.2,223.83,223.82,55.77605895]
[1758551357570,0.2,223.83,223.82,68.4938221]
[1758551357764,0.2,223.83,223.82,33.7438221]
[1758551358178,0.2,223.83,223.82,69.1838221]
[1758551359491,0.2,223.83,223.82,33.7438221]
[1758551359685,0.2,223.83,223.82,69.1838221]
[1758551360573,11.16392413,223.94,223.83,13.59559401]
[1758551360775,11.16392413,223.94,223.85,13.59559401]
[1758551360994,11.16392413,223.94,223.87,13.59559401]
[1758551361196,11.16392413,223.94,223.88,35.44]
[1758551361380,26.0,223.97,223.89,13.59559401]
[1758551361580,0.2,224.0,223.9,35.44]
[1758551361893,0.2,224.0,223.99,15.15818298]
[1758551362101,0.2,224.0,223.99,50.59818298]
[1758551362313,0.2,224.0,223.99,55.752668]
[1758551362488,0.1,224.03,224.02,39.59559401]
[1758551362693,0.1,224.03,224.02,75.03559401]
[1758551363004,0.1,224.03,224.02,41.15818298]
[1758551363212,0.1,224.03,224.02,78.38777205]
[1758551363500,0.1,224.03,224.02,79.07777205]
[1758551364687,0.1,224.03,224.02,83.5416592]
[1758551365100,0.1,224.03,224.02,83.98804791]
[1758551365412,0.1,224.06,224.05,39.59559401]
[1758551365700,0.1,224.06,224.05,76.57818298]
[1758551365878,0.1,224.06,224.05,77.02451192]
[1758551366684,0.1,224.06,224.05,81.48780136]
[1758551367908,0.1,224.06,224.05,76.57818298]
[1758551368399,0.1,224.06,224.05,49.01559401]
[1758551368784,0.1,224.06,224.05,13.59559401]
[1758551369104,0.1,224.06,224.05,49.01559401]
[1758551370094,0.1,224.06,224.05,48.99559401]
[1758551370484,0.1,224.12,224.06,13.59559401]
[1758551370687,0.1,224.12,224.11,13.59559401]
[1758551370892,0.1,224.12,224.11,48.99559401]
[1758551371406,0.1,224.12,224.11,50.55818298]
[1758551371701,0.06567744,224.17,224.12,13.59559401]
[1758551371883,0.06567744,224.17,224.16,15.15818298]
[1758551372199,0.06567744,224.17,224.16,50.55818298]
[1758551372504,0.06567744,224.17,224.16,48.99559401]
[1758551373686,0.06567744,224.17,224.16,50.55818298]
[1758551374483,0.06567744,224.17,224.16,48.99559401]
[1758551376703,4.52657764,224.17,224.16,48.99559401]
[1758551377601,4.52657764,224.17,224.16,62.49411502]
[1758551378101,4.52657764,224.17,224.16,27.09411502]
[1758551378310,4.52657764,224.17,224.16,48.87852101]
[1758551378515,6.08916661,224.17,224.16,48.87852101]
[1758551378722,6.08916661,224.17,224.16,13.49852101]
[1758551378899,17.92141713,224.17,224.16,35.38]
[1758551379095,17.92141713,224.17,224.15,35.38]
[1758551379298,1.56258897,224.16,224.15,35.38]
[1758551380795,2.24258897,224.16,224.08,27.14088592]
[1758551380996,1.56258897,224.14,224.1,13.59559401]
[1758551381196,1.56258897,224.14,224.11,35.38]
[1758551382116,17.17713279,224.15,224.11,35.38]
[1758551382695,1.56258897,224.13,224.12,35.38]
[1758551382896,27.56258897,224.13,224.12,35.38]
[1758551383109,27.56258897,224.13,224.11,35.38]
[1758551383309,1.56258897,224.12,224.11,35.38]
[1758551383516,27.56258897,224.13,224.11,35.38]
[1758551384522,4.46189541,224.12,224.11,35.38]
[1758551386417,0.06567744,224.17,224.12,13.59559401]
[1758551386622,0.06567744,224.17,224.13,35.38]
[1758551386819,0.06567744,224.17,224.14,13.59559401]
[1758551387003,0.06567744,224.17,224.15,35.38]
[1758551387322,4.52659149,224.17,224.15,35.38]
[1758551388232,4.52659149,224.17,224.09,50.76462279]
[1758551388233,26.0,224.13,224.09,50.76462279]
[1758551388414,1.56258897,224.11,224.09,48.97559401]
[1758551388729,4.46229361,224.1,224.09,48.97559401]
[1758551388926,0.06567744,224.17,224.1,13.59559401]
[1758551389099,0.06567744,224.17,224.12,13.59559401]
[1758551389296,0.06567744,224.17,224.14,13.59559401]
[1758551389500,4.52661117,224.17,224.11,0.69]
[1758551389718,4.52661117,224.17,224.13,13.59559401]
[1758551390039,31.20661117,224.17,224.09,13.59559401]
[1758551390337,26.06567744,224.17,224.11,13.59559401]
[1758551390539,30.52663721,224.17,224.11,13.59559401]
[1758551390919,41.67888773,224.17,224.11,13.59559401]
[1758551391309,0.06567744,224.17,224.16,1.56258897]
[1758551391514,0.06567744,224.17,224.16,51.60818298]
[1758551392006,0.06567744,224.17,224.16,53.39665183]
[1758551392407,0.06567744,224.17,224.16,54.9592408]
[1758551392629,0.06567744,224.17,224.16,55.88697218]
[1758551393020,0.06567744,224.17,224.16,60.34807139]
[1758551394118,0.1,224.18,224.17,13.59559401]
[1758551394324,0.1,224.18,224.17,50.02559401]
[1758551395118,0.1,224.18,224.17,14.28559401]
[1758551395322,0.1,224.18,224.17,50.00559401]
[1758551395643,0.1,224.18,224.17,18.74649421]
[1758551395819,0.1,224.18,224.17,54.46649421]
[1758551396016,0.1,224.2,224.19,39.59559401]
[1758551396268,0.1,224.2,224.19,79.36850333]
[1758551396536,0.1,224.2,224.19,80.03850333]
[1758551397126,0.1,224.2,224.19,84.49900558]
[1758551397526,0.1,224.2,224.19,44.33850333]
[1758551397932,0.1,224.2,224.19,80.42609626]
[1758551398138,0.1,224.2,224.19,44.74609626]
[1758551398338,0.1,224.2,224.19,84.47900558]
[1758551398637,0.1,224.21,224.2,39.59559401]
[1758551398832,0.1,224.21,224.2,75.97559401]
[1758551399030,0.1,224.21,224.2,14.31559401]
[1758551399231,0.1,224.21,224.2,51.04374306]
[1758551399440,0.1,224.21,224.2,51.76374306]
[1758551399828,0.1,224.21,224.2,16.10374306]
[1758551400030,0.1,224.21,224.2,15.38374306]
[1758551400225,0.1,224.21,224.2,51.04374306]